Workbook

Sheet прил 2
K3: Приложение 2 к Национальному стандарту бухгалтерского учета и отчетности «Индивидуальная бухгалтерская отчетность» 12.12.2016 № 104
Q4: Форма
C5: ОТЧЕТ о прибылях и убытках
E6: за | F6: январь - | G6: - | H6: декабрь | J6: 2022 г.
C8: Организация | F8: ОАО "Универмаг "Центральный"
C9: Учетный номер плательщика | F9: 70002659
C10: Вид экономической деятельности | F10: Розничная торговля
C11: Организационно-правовая форма | F11: Открытое акционерное общество
C12: Орган управления | F12: Управление торговли и услуг Могилевского горисполкома
C13: Единица измерения | F13: тыс. руб.
C14: Адрес | F14: 212030 г. Могилев, ул. Первомайская, 61
C16: Наименование показателей | I16: Код строки | J16: За | K16: =F6 -> январь - | M16: - | N16: =H6 -> декабрь | O16: За | P16: =F6 -> январь - | R16: - | S16: =H6 -> декабрь
J17: =J6 -> 2022 г. | O17: =DATE(YEAR(J17),MONTH(0),DAY(0)) -> 
C18: 1 | I18: 2 | J18: 3 | O18: 4
C19: Выручка от реализации продукции, товаров, работ, услуг | I19: 010 | J19: 25878 | O19: 21593 | V19: 90 (90-1, 90-2, 90-3)
C20: Себестоимость реализованной продукции, товаров, работ, услуг | I20: 020 | J20: 18068 | O20: 14681 | V20: 90 (90-4)
C21: Валовая прибыль | I21: 030 | J21: =J19-J20 -> 7810 | O21: =O19-O20 -> 6912
C22: Управленческие расходы | I22: 040 | J22: 1200 | O22: 980 | V22: 90 (90-5)
C23: Расходы на реализацию | I23: 050 | J23: 5561 | O23: 5207 | V23: 90 (90-6)
C24: Прибыль (убыток) от реализации продукции, товаров, работ, услуг | I24: 060 | J24: =J21-J22-J23 -> 1049 | O24: =O21-O22-O23 -> 725
C25: Прочие доходы по текущей деятельности | I25: 070 | J25: 446 | O25: 515 | V25: 90 (90-7, 90-8, 90-9)
C26: Прочие расходы по текущей деятельности | I26: 080 | J26: 732 | O26: 822 | V26: 90 (90-10)
C27: Прибыль (убыток) от текущей деятельности | I27: 090 | J27: =J24+J25-J26 -> 763 | O27: =O24+O25-O26 -> 418
C28: Доходы по инвестиционной деятельности | I28: 100 | J28: =SUM(J30:N33) -> 343 | O28: =SUM(O30:S33) -> 163 | V28: 91 (91-1, 91-2, 91-3)
C29: в том числе:
C30: доходы от выбытия основных средств, нематериальных активов и других долгосрочных активов | I30: 101 | J30: 11 | O30: 109
C31: доходы от участия в уставных капиталах других организаций | I31: 102 | J31: 1 | O31: 7
C32: проценты к получению | I32: 103 | J32: 11 | O32: 29
C33: прочие доходы по инвестиционной деятельности | I33: 104 | J33: 320 | O33: 18
C34: Расходы по инвестиционной деятельности | I34: 110 | J34: =SUM(J36:N37) -> 301 | O34: =SUM(O36:S37) -> 110 | V34: 91 (91-4)
C35: в том числе:
C36: расходы от выбытия основных средств, нематериальных активов и других долгосрочных активов | I36: 111 | J36: 16 | O36: 104
C37: прочие расходы по инвестиционной деятельности | I37: 112 | J37: 285 | O37: 6
C38: Доходы по финансовой деятельности | I38: 120 | J38: =SUM(J39:N41) -> 163 | O38: =SUM(O40:S41) -> 31 | V38: 91 (91-1, 91-2, 91-3)
C39: в том числе:
C40: курсовые разницы от пересчета активов и обязательств | I40: 121 | J40: 163 | O40: 29
C41: прочие доходы по финансовой деятельности | I41: 122 | J41: 0 | O41: 2
C42: Расходы по финансовой деятельности | I42: 130 | J42: =J46+J45+J44 -> 170 | O42: =SUM(O44:S46) -> 64 | V42: 91 (91-4)
C43: в том числе:
C44: проценты к уплате | I44: 131 | J44: 21 | O44: 33
C45: курсовые разницы от пересчета активов и обязательств | I45: 132 | J45: 144 | O45: 25
C46: прочие расходы по финансовой деятельности | I46: 133 | J46: 5 | O46: 6
C47: Прибыль (убыток) от инвестиционной и финансовой деятельности | I47: 140 | J47: =J28-J34+J38-J42 -> 35 | O47: =O28-O34+O38-O42 -> 20
C48: Прибыль (убыток) до налогообложения | I48: 150 | J48: =J27+J47 -> 798 | O48: =O27+O47 -> 438
C49: Налог на прибыль | I49: 160 | J49: 206 | O49: 133 | V49: 99, 68
C50: Изменение отложенных налоговых активов | I50: 170 | J50: 0 | O50: 0 | V50: 09
C51: Изменение отложенных налоговых обязательств | I51: 180 | J51: 0 | O51: 0 | V51: 65
C52: Прочие налоги и сборы, исчисляемые из прибыли (дохода) | I52: 190 | J52: 0 | O52: 1 | V52: 99, 68
C53: Прочие платежи, исчисляемые из прибыли (дохода) | I53: 200 | J53: 0 | O53: 0 | V53: 99, 68
C54: Чистая прибыль (убыток) | I54: 210 | J54: =J48-J49+J50+J51-J52-J53 -> 592 | O54: 305 | W54: =IF(H6="декабрь"," ","≠") ->  | X54: =IF(H6="декабрь"," ",#REF!) ->  | Y54: =IF(H6="декабрь"," ","стр.210 гр.3 Отчета ≠ стр.470 гр.3 ББ") -> 
C55: Результат от переоценки долгосрочных активов, не включаемый в чистую прибыль (убыток) | I55: 220 | J55: 2792 | O55: 0 | V55: 83
C56: Результат от прочих операций, не включаемый в чистую прибыль (убыток) | I56: 230 | J56: 0 | O56: 0
C57: Совокупная прибыль (убыток) | I57: 240 | J57: =J54+J55+J56 -> 3384 | O57: =O54+O55+O56 -> 305
C58: Базовая прибыль (убыток) на акцию | I58: 250 | J58: 0 | O58: 0
C59: Разводненная прибыль (убыток) на акцию | I59: 260 | J59: 0 | O59: 0
C61: Руководитель | J61: В.С.Амбарцумян
F62: (подпись) | J62: (инициалы, фамилия)
C63: Главный бухгалтер | J63: М.А. Краснова
F64: (подпись) | J64: (инициалы, фамилия)
C65: 22 февраля 2023 г.

Sheet Приложение (hidden)
A1: =ROW() -> 1 | B1: А. Сельское, лесное и рыбное хозяйство, 011-017 | C1: 1.5 | D1: 0.2
A2: =ROW() -> 2 | B2: А. Сельское, лесное и рыбное хозяйство, 021-024 | C2: 1.5 | D2: 0.2
A3: =ROW() -> 3 | B3: А. Сельское, лесное и рыбное хозяйство, 031-032 | C3: 1.5 | D3: 0.2
A4: =ROW() -> 4 | B4: В. Горнодобывающая промышленность, 051-052, 061-062, 071-072, 081, 089, 091 | C4: 1.7 | D4: 0.3
A5: =ROW() -> 5 | B5: В. Горнодобывающая промышленность, 099 | C5: 1.2 | D5: 0.15
A6: =ROW() -> 6 | B6: С. Обрабатывающая промышленность, 101, 104-109 | C6: 1.3 | D6: 0.2
A7: =ROW() -> 7 | B7: С. Обрабатывающая промышленность, 102-103 | C7: 1.7 | D7: 0.3
A8: =ROW() -> 8 | B8: С. Обрабатывающая промышленность, 110, 120 | C8: 1.7 | D8: 0.3
A9: =ROW() -> 9 | B9: С. Обрабатывающая промышленность, 131-133, 139, 141-143, 151-152 | C9: 1.3 | D9: 0.2
A10: =ROW() -> 10 | B10: С. Обрабатывающая промышленность, 161-162, 171-172, 181-182 | C10: 1.3 | D10: 0.2
A11: =ROW() -> 11 | B11: С. Обрабатывающая промышленность, 191 | C11: 1.4 | D11: 0.2
A12: =ROW() -> 12 | B12: С. Обрабатывающая промышленность, 192 | C12: 1.7 | D12: 0.3
A13: =ROW() -> 13 | B13: С. Обрабатывающая промышленность, подкласс 19201 | C13: 1.4 | D13: 0.2
A14: =ROW() -> 14 | B14: С. Обрабатывающая промышленность, 201-206, 211-212 | C14: 1.4 | D14: 0.2
A15: =ROW() -> 15 | B15: С. Обрабатывающая промышленность, 221-222 | C15: 1.3 | D15: 0.2
A16: =ROW() -> 16 | B16: С. Обрабатывающая промышленность, 231-237, 239 | C16: 1.2 | D16: 0.15
A17: =ROW() -> 17 | B17: С. Обрабатывающая промышленность, 241, 242, 244, 245 | C17: 1.3 | D17: 0.2
A18: =ROW() -> 18 | B18: С. Обрабатывающая промышленность, 243 | C18: 1.2 | D18: 0.15
A19: =ROW() -> 19 | B19: С. Обрабатывающая промышленность, 251 | C19: 1.2 | D19: 0.15
A20: =ROW() -> 20 | B20: С. Обрабатывающая промышленность, 252-257, 259 | C20: 1.3 | D20: 0.2
A21: =ROW() -> 21 | B21: С. Обрабатывающая промышленность, 261-267 | C21: 1.3 | D21: 0.2
A22: =ROW() -> 22 | B22: С. Обрабатывающая промышленность, 268 | C22: 1.4 | D22: 0.2
A23: =ROW() -> 23 | B23: С. Обрабатывающая промышленность, 271-275, 279 | C23: 1.3 | D23: 0.2
A24: =ROW() -> 24 | B24: С. Обрабатывающая промышленность, 281-282, 284, 289 | C24: 1.3 | D24: 0.2
A25: =ROW() -> 25 | B25: С. Обрабатывающая промышленность, 283 | C25: 1.6 | D25: 0.1
A26: =ROW() -> 26 | B26: С. Обрабатывающая промышленность, 291-293, 301-304, 309 | C26: 1.3 | D26: 0.2
A27: =ROW() -> 27 | B27: С. Обрабатывающая промышленность, 310, 321-322, 324, 329 | C27: 1.7 | D27: 0.3
A28: =ROW() -> 28 | B28: С. Обрабатывающая промышленность, 323, 325, 331-332 | C28: 1.3 | D28: 0.2
A29: =ROW() -> 29 | B29: D. Снабжение электроэнергией, газом, паром, горячей водой и кондиционированным воздухом, 351 | C29: 1.1 | D29: 0.25
A30: =ROW() -> 30 | B30: D. Снабжение электроэнергией, газом, паром, горячей водой и кондиционированным воздухом, 352 | C30: 1.01 | D30: 0.3
A31: =ROW() -> 31 | B31: D. Снабжение электроэнергией, газом, паром, горячей водой и кондиционированным воздухом, 353 | C31: 1.1 | D31: 0.1
A32: =ROW() -> 32 | B32: 5. Е. Водоснабжение; сбор, обработка и удаление отходов, деятельность по ликвидации загрязнений, 360-370, 381-382, 390 | C32: 1.1 | D32: 0.1
A33: =ROW() -> 33 | B33: 5. Е. Водоснабжение; сбор, обработка и удаление отходов, деятельность по ликвидации загрязнений, 383 | C33: 1.7 | D33: 0.3
A34: =ROW() -> 34 | B34: 6. F. Строительство, 411 | C34: 1.1 | D34: 0.1
A35: =ROW() -> 35 | B35: 6. F. Строительство, 412, 421-422, 429, 431-433, 439 | C35: 1.2 | D35: 0.15
A36: =ROW() -> 36 | B36: 7. G. Оптовая и розничная торговля; ремонт автомобилей и мотоциклов, 451-454, 461-467, 469, 471-479 | C36: 1 | D36: 0.1
A37: =ROW() -> 37 | B37: 8. H. Транспортная деятельность, складирование, почтовая и курьерская деятельность, 491-495, 501-504, 511-512, 521-522 | C37: 1.15 | D37: 0.15
A38: =ROW() -> 38 | B38: 8. H. Транспортная деятельность, складирование, почтовая и курьерская деятельность, 531-532 | C38: 1 | D38: 0.05
A39: =ROW() -> 39 | B39: 9. I. Услуги по временному проживанию и питанию, 551-553, 559 | C39: 1.1 | D39: 0.1
A40: =ROW() -> 40 | B40: 9. I. Услуги по временному проживанию и питанию, 561-563 | C40: 1 | D40: 0.1
A41: =ROW() -> 41 | B41: 10. J. Информация и связь, 581 | C41: 1.1 | D41: 0.15
A42: =ROW() -> 42 | B42: 10. J. Информация и связь, 582 | C42: 1.3 | D42: 0.2
A43: =ROW() -> 43 | B43: 10. J. Информация и связь, 591 | C43: 1.1 | D43: 0.1
A44: =ROW() -> 44 | B44: 10. J. Информация и связь, 592 | C44: 1.1 | D44: 0.15
A45: =ROW() -> 45 | B45: 10. J. Информация и связь, 601-602, 611-613, 619 | C45: 1.1 | D45: 0.15
A46: =ROW() -> 46 | B46: 10. J. Информация и связь, 620, 631 | C46: 1.3 | D46: 0.2
A47: =ROW() -> 47 | B47: 10. J. Информация и связь, 639 | C47: 1.1 | D47: 0.1
A48: =ROW() -> 48 | B48: K. Финансовая и страховая деятельность, 641-643 | C48: 1.5 | D48: 0.2
A49: =ROW() -> 49 | B49: K. Финансовая и страховая деятельность, 649 | C49: 1.1 | D49: 0.1
A50: =ROW() -> 50 | B50: K. Финансовая и страховая деятельность, 651-653, 661-663 | C50: 1.5 | D50: 0.2
A51: =ROW() -> 51 | B51: L. Операции с недвижимым имуществом, 681-682 | C51: 1.1 | D51: 0.1
A52: =ROW() -> 52 | B52: L. Операции с недвижимым имуществом, 683 | C52: 1 | D52: 0.05
A53: =ROW() -> 53 | B53: М. Профессиональная, научная и техническая деятельность, 691-692, 701-702, 711 | C53: 1 | D53: 0.05
A54: =ROW() -> 54 | B54: М. Профессиональная, научная и техническая деятельность, 712 | C54: 1.2 | D54: 0.15
A55: =ROW() -> 55 | B55: М. Профессиональная, научная и техническая деятельность, 721-722 | C55: 1.15 | D55: 0.2
A56: =ROW() -> 56 | B56: М. Профессиональная, научная и техническая деятельность, 731 | C56: 1.2 | D56: 0.15
A57: =ROW() -> 57 | B57: М. Профессиональная, научная и техническая деятельность, 732 | C57: 1 | D57: 0.05
A58: =ROW() -> 58 | B58: М. Профессиональная, научная и техническая деятельность, 741, 743, 749 | C58: 1.2 | D58: 0.15
A59: =ROW() -> 59 | B59: М. Профессиональная, научная и техническая деятельность, 742 | C59: 1.1 | D59: 0.1
A60: =ROW() -> 60 | B60: М. Профессиональная, научная и техническая деятельность, 750 | C60: 1.5 | D60: 0.2
A61: =ROW() -> 61 | B61: 14. N. Деятельность в сфере административных и вспомогательных услуг, 771-773 | C61: 1.1 | D61: 0.1
A62: =ROW() -> 62 | B62: 14. N. Деятельность в сфере административных и вспомогательных услуг, 774 | C62: 1 | D62: 0.05
A63: =ROW() -> 63 | B63: 14. N. Деятельность в сфере административных и вспомогательных услуг, 781-783 | C63: 1.2 | D63: 0.15
A64: =ROW() -> 64 | B64: 14. N. Деятельность в сфере административных и вспомогательных услуг, 791, 799 | C64: 1.15 | D64: 0.15
A65: =ROW() -> 65 | B65: 14. N. Деятельность в сфере административных и вспомогательных услуг, 801-803 | C65: 1.2 | D65: 0.15
A66: =ROW() -> 66 | B66: 14. N. Деятельность в сфере административных и вспомогательных услуг, 811-812 | C66: 1.1 | D66: 0.1
A67: =ROW() -> 67 | B67: 14. N. Деятельность в сфере административных и вспомогательных услуг, 813 | C67: 1.5 | D67: 0.2
A68: =ROW() -> 68 | B68: 14. N. Деятельность в сфере административных и вспомогательных услуг, 821-823, 829 | C68: 1.2 | D68: 0.15
A69: =ROW() -> 69 | B69: 15. Q. Здравоохранение и социальные услуги, 861 | C69: 1.1 | D69: 0.1
A70: =ROW() -> 70 | B70: 16. R. Творчество, спорт, развлечения и отдых, 931 | C70: 1.1 | D70: 0.1
A71: =ROW() -> 71 | B71: 17. S. Предоставление прочих видов услуг, 941-942, 949 | C71: 1.1 | D71: 0.1
A72: =ROW() -> 72 | B72: 17. S. Предоставление прочих видов услуг, 951 | C72: 1.3 | D72: 0.2
A73: =ROW() -> 73 | B73: 17. S. Предоставление прочих видов услуг, 952 | C73: 1 | D73: 0.1
A74: =ROW() -> 74 | B74: 17. S. Предоставление прочих видов услуг, 960 | C74: 1.1 | D74: 0.1
A75: =ROW() -> 75 | B75: 18. Прочие виды экономической деятельности | C75: 1.5 | D75: 0.2
